[Event "1st Anfield Cup 2022"]
[Site "Kyiv"]
[Date "2022.09.24"]
[Round "1.1"]
[White "Golichenko, Ilija"]
[Black "Sydoryka, Vladyslav"]
[Result "0-1"]
[ECO "E32"]
[WhiteElo "2413"]
[BlackElo "2278"]
[Annotator "TA"]
[PlyCount "52"]
[EventDate "2022.09.20"]
[EventType "swiss"]
[EventCountry "UKR"]
[SourceTitle "playchess.com"]
[Source "ChessBase"]
[SourceQuality "1"]
[TimeControl "900+10"]

{[%evp 12,52,14,-1,16,-6,-19,-158,-82,-75,-56,-159,-156,-313,-306,-371,-371,-371,-371,-371,-371,-680,-680,-704,-704,-702,-694,-787,-766,-996,-966,-1220,-970,-2759,-1161,-3008,-1175,-1166,-1163,-1115,-1111,-984,-913]} 1. d4 {[%emt 0:00:03]} Nf6 {[%emt 0:00:02]} 2. c4 {[%emt 0:00:06]} e6 {[%emt 0:00:02]} 3. Nc3 {[%emt 0:00:01]} Bb4 {[%emt 0:00:03]} 4. Qc2 {[%emt 0:00:02]} O-O {[%emt 0:00:04]} 5. a3 {[%emt 0:00:21]} Bxc3+ {[%emt 0:00:03]} 6. Qxc3 {[%emt 0:00:01]} d5 $1 {[%emt 0:00:02][%mdl 4] is more profitable than 6...b6 at the moment.} 7. Bg5 {[%emt 0:00:18]} h6 {[%emt 0:00:07] E36: Nimzo-Indian: Classical: 4...d5 5 a3.} (7... c5 {looks sharper.} 8. cxd5 cxd4 9. Qxd4 Nc6) 8. Bh4 {[%emt 0:00:02]} (8. Bxf6 $5 Qxf6 9. e3 $11) 8... c5 {[%emt 0:00:02]} 9. cxd5 {[%emt 0:02:07]} (9. dxc5 $11 {remains equal.} d4 10. Qg3) 9... cxd4 {[%emt 0:00:14]} (9... g5 $142 $1 {White must now prevent ...Ne4.} 10. Bg3 Ne4) 10. Qxd4 {[%emt 0:00:12]} Nc6 {[%emt 0:00:13] [#]} ({Don't take} 10... exd5 11. Bxf6 Qxf6 12. Qxf6 gxf6 13. e3 $14) (10... g5 $5 {[%cal Rg5h4]} 11. Bg3 Nc6 $15) 11. Qc5 $146 {[%emt 0:03:09]} (11. Qf4 $15 Nxd5 12. Bxd8 Nxf4 13. Bc7) ({Predecessor:} 11. Qd2 exd5 12. Rd1 Re8 13. Nf3 Bg4 14. h3 Bxf3 15. gxf3 Ne5 16. Bg2 Ng6 17. Bg3 {0-1 (33) Stolberg Rohr,T (1975)-Poeck,O (2195) Lueneburg 2018}) 11... exd5 $17 {[%emt 0:02:10] aiming for ...g5.} ({And not} 11... Qxd5 12. Qxd5 Nxd5 13. e4 $11) 12. e3 $2 {[%emt 0:00:04] Now White is beyond hope.} (12. Rd1 $17 {was worth a try.}) 12... g5 $1 $19 {[%emt 0:01:06]} 13. Bg3 {[%emt 0:00:04]} Ne4 {[%emt 0:00:04]} 14. Qb5 {[%emt 0:02:14]} a6 {[%emt 0:00:32]} 15. Qa4 {[%emt 0:00:01]} b5 {[%emt 0:02:34]} 16. Qc2 {[%emt 0:04:02]} (16. Bxb5 Nc5 17. Qd1 (17. Qc2 $2 Qa5+ 18. Kf1 Qxb5+ $19) 17... axb5 18. Rc1 Qa5+ 19. b4 Nxb4 20. axb4 Qxb4+ 21. Kf1) 16... Qa5+ $1 {[%emt 0:00:16] Black is clearly winning.} 17. Kd1 {[%emt 0:00:02] [#]} Bf5 $1 {[%emt 0:00:43]} 18. Bd3 {[%emt 0:02:25]} Nb4 {[%emt 0:00:16]} 19. axb4 {[%emt 0:01:32]} Qxa1+ {[%emt 0:00:04]} 20. Ke2 {[%emt 0:00:02]} Rac8 {[%emt 0:00:13]} 21. Bc7 {[%emt 0:00:02]} Rfe8 {[%emt 0:01:15]} 22. f3 {[%emt 0:01:11] [#]} Re7 {[%emt 0:00:42]} (22... Ng3+ $142 $1 {[%mdl 512]} 23. hxg3 {[#]} Rxc7 $1 {[%mdl 512]}) 23. fxe4 {[%emt 0:00:02]} Rexc7 {[%emt 0:00:07]} (23... dxe4 $142 24. Bxe4 Bxe4) 24. Qb1 {[%emt 0:00:18]} Qxb1 {[%emt 0:00:06]} 25. Bxb1 {[%emt 0:00:02]} dxe4 {[%emt 0:00:20] ...Rc1 is the strong threat.} 26. Nh3 {[%emt 0:00:17]} Rc1 {[%emt 0:00:08] Weighted Error Value: White=1.30/Black=1.06} 0-1

[Event "1st Anfield Cup 2022"]
[Site "Kyiv"]
[Date "2022.09.24"]
[Round "1.2"]
[White "Danilov, Sergey S."]
[Black "Vysochin, Spartak"]
[Result "0-1"]
[ECO "C01"]
[WhiteElo "2128"]
[BlackElo "2512"]
[Annotator "TA"]
[PlyCount "118"]
[EventDate "2022.09.20"]
[EventType "swiss"]
[EventCountry "UKR"]
[SourceTitle "playchess.com"]
[Source "ChessBase"]
[SourceQuality "1"]
[TimeControl "900+10"]

{[%evp 15,118,-11,17,0,22,-29,-21,-24,-27,-66,-42,-62,-64,-76,-47,-48,-12,-14,-4,-6,0,0,0,0,0,0,0,0,0,0,0,0,0,0,29,0,0,0,103,-135,-124,-898,-28,-318,-272,-299,-303,-660,-655,-643,-624,-834,-776,-989,-1042,-5826,-1760,-12828,-12825,-4913,-4998,-882,-865,-838,-841,-12833,-12836,-12837,-11463,-12841,-12838,-12839,-12835,-12842,-12843,-12844,-12843,-12844,-12843,-12845,-12845,-12845,-12843,-12845,-12844,-12845,-12843,-12845,-12843,-12845,-12846,-12846,-12845,-12845,-12846,-12846,-12847,-12848,-12847,-12849,-12848,-12849,-12848,-12849,-12849]} 1. e4 {[%emt 0:00:01]} e6 {[%emt 0:00:01]} 2. d4 {[%emt 0:00:01]} d5 {[%emt 0:00:02]} 3. exd5 {[%emt 0:00:05]} exd5 {[%emt 0:00:01]} 4. Nf3 {[%emt 0:00:02]} Nf6 {[%emt 0:00:02]} 5. Bd3 {[%emt 0:00:04]} c5 {[%emt 0:00:02]} 6. c3 {[%emt 0:00:04]} Bd6 {[%emt 0:00:19]} 7. h3 {[%emt 0:00:12]} O-O {[%emt 0:00:04][%cal Bh8f8,Bf8e8,Be8e4][%mdl 32]} 8. O-O {[%emt 0:00:03]} h6 {[%emt 0:00:35]} 9. Re1 {[%emt 0:00:17] C01: French: Exchange Variation.} Nc6 {[%emt 0:00:15]} 10. Be3 {[%emt 0:00:15] [#]} (10. dxc5 $142 Bxc5 11. Be3) 10... c4 $146 {[%emt 0:00:20]} ({Predecessor:} 10... b6 11. Nbd2 Qc7 12. a3 c4 13. Bc2 b5 14. Rc1 a5 15. Bb1 Be6 16. Qc2 b4 17. axb4 axb4 {1-0 (79) Al Marawi,A-Doepper,A (1654) Germany 2016}) 11. Bc2 {[%emt 0:00:01] The position is equal.} b5 {[%emt 0:00:33]} 12. Qd2 {[%emt 0:00:24][%cal Oe3h6]} Re8 {[%emt 0:00:09]} (12... Ne4 $5 {[%cal Re4d2]} 13. Qc1 f5 $15) 13. a4 {[%emt 0:00:28]} b4 {[%emt 0:00:19]} 14. cxb4 {[%emt 0:02:24]} Bxb4 {[%emt 0:02:14]} 15. Nc3 {[%emt 0:00:01]} Ne4 {[%emt 0:00:56]} 16. Bxe4 {[%emt 0:00:09]} Rxe4 {[%emt 0:01:11]} 17. Bxh6 $1 {[%emt 0:04:23]} gxh6 {[%emt 0:04:21]} 18. Qxh6 {[%emt 0:00:05]} Qd6 $1 {[%emt 0:02:11]} (18... Nxd4 $2 19. Nxd4 Rxd4 20. Re5 $18) 19. Qg5+ {[%emt 0:01:47]} Qg6 {[%emt 0:00:15]} 20. Nxe4 {[%emt 0:01:14]} dxe4 {[%emt 0:00:07]} 21. Rxe4 {[%emt 0:01:09]} Bf5 $36 {[%emt 0:01:15][%mdl 2048] Black fights for an advantage.} 22. Rf4 {[%emt 0:00:21]} Qxg5 {[%emt 0:00:09] Dancing on a razor blade.} 23. Nxg5 {[%emt 0:00:01]} Bg6 {[%emt 0:00:28] A strong pair of Bishops.} 24. Nf3 {[%emt 0:00:35] Against Bd2} Rb8 {[%emt 0:02:32]} 25. Rc1 {[%emt 0:00:11]} Na5 {[%emt 0:00:07]} 26. Rg4 {[%emt 0:00:17]} Bd6 {[%emt 0:00:24]} (26... Kh7 $11) 27. Rc2 $2 {[%emt 0:00:14]} (27. Nh4 $16 {stays on course.} Bc7 28. Nxg6 fxg6 29. Rxg6+ Kf7 30. Ra6) 27... Kf8 $17 {[%emt 0:00:21][%mdl 1024] Black has strong compensation. Black is more active. Black keeps a firm grip on the game.} 28. Rd2 {[%emt 0:00:21][%mdl 8192]} (28. Rxg6 $17 fxg6 29. Ne5 Bxe5 30. dxe5) 28... Nb3 $2 {[%emt 0:00:10]} ({Black should play} 28... c3 $1 $19 29. Rd1 cxb2) 29. Re2 {[%emt 0:00:04][%mdl 8192]} (29. Rd1 $1 $11 {and White is okay.}) 29... Nc1 $19 {[%emt 0:00:13]} 30. Rd2 {[%emt 0:00:43]} Nd3 {[%emt 0:00:02] Inhibits Ne5. Threatens to win with ...c3.} 31. Ne5 $2 {[%emt 0:02:31]} (31. Rh4 c3 32. Rxd3 Rxb2 33. Re3) 31... Bxe5 {[%emt 0:00:18] Black is clearly winning.} 32. dxe5 {[%emt 0:00:02]} Rxb2 {[%emt 0:00:06] aiming for ...c3.} 33. Rxb2 {[%emt 0:00:52]} Nxb2 {[%emt 0:00:01]} 34. Kf1 {[%emt 0:00:01]} c3 {[%emt 0:00:23] And now ...c2 would win.} 35. Ke1 {[%emt 0:00:35]} Nd3+ {[%emt 0:00:04]} 36. Ke2 {[%emt 0:00:28]} c2 {[%emt 0:00:16]} 37. Rc4 {[%emt 0:00:01]} c1=Q {[%emt 0:00:05]} 38. Rxc1 {[%emt 0:00:02]} Nxc1+ {[%emt 0:00:02]} 39. Ke3 {[%emt 0:00:18]} Nd3 {[%emt 0:00:03]} 40. f4 {[%emt 0:00:04]} Nb2 {[%emt 0:00:06]} 41. g4 {[%emt 0:00:05]} Bb1 {[%emt 0:00:32]} 42. Kd4 {[%emt 0:00:22]} Nxa4 {[%emt 0:00:02]} 43. Kd5 {[%emt 0:00:04]} Nb6+ {[%emt 0:00:04]} 44. Kc5 {[%emt 0:00:09] [#]} a5 $1 {[%emt 0:00:09][%cal Ba7a5,Ba5a4][%mdl 32]} 45. Kb5 {[%emt 0:00:03] [#]} (45. h4 a4) 45... a4 $1 {[%emt 0:00:01][%cal Oa4a3] ( -> ...a3!)} 46. Kb4 {[%emt 0:00:01]} Bc2 {[%emt 0:00:02]} 47. f5 {[%emt 0:00:03]} Nd5+ {[%emt 0:00:01]} 48. Ka3 {[%emt 0:00:03]} Ne3 {[%emt 0:00:10]} 49. Kb2 {[%emt 0:00:25]} Be4 {[%emt 0:00:03]} 50. Ka3 {[%emt 0:00:03]} Bc6 {[%emt 0:00:18]} 51. Kb4 {[%emt 0:00:02]} Ke7 {[%emt 0:00:11]} 52. e6 {[%emt 0:00:18]} f6 {[%emt 0:00:14]} 53. Ka3 {[%emt 0:00:02]} Nc2+ {[%emt 0:00:11]} 54. Kb2 {[%emt 0:00:01]} Be4 {[%emt 0:00:01]} 55. Ka2 {[%emt 0:00:09]} a3 {[%emt 0:00:02]} 56. Kb3 {[%emt 0:00:03]} Nd4+ {[%emt 0:00:28]} 57. Kxa3 {[%emt 0:00:05]} Nxf5 {[%emt 0:00:04]} 58. Kb4 {[%emt 0:00:24]} Nh4 {[%emt 0:00:09]} 59. Kc5 {[%emt 0:00:02]} Bg2 {[%emt 0:00:02] Weighted Error Value: White=1.38/Black=0.29 (precise)} 0-1

[Event "1st Anfield Cup 2022"]
[Site "Kyiv"]
[Date "2022.09.24"]
[Round "1.3"]
[White "Malakhatko, Vadim"]
[Black "Kovalenko, Maksym"]
[Result "1-0"]
[ECO "D30"]
[WhiteElo "2448"]
[BlackElo "2026"]
[Annotator "TA"]
[PlyCount "79"]
[EventDate "2022.09.20"]
[EventType "swiss"]
[EventCountry "UKR"]
[SourceTitle "playchess.com"]
[Source "ChessBase"]
[SourceQuality "1"]
[TimeControl "900+10"]

{[%evp 19,79,93,106,106,106,105,118,118,119,119,119,119,121,118,152,171,152,153,175,121,162,121,210,227,210,183,236,233,282,277,253,291,319,317,356,343,391,406,417,323,475,491,510,489,449,479,472,482,721,713,675,694,725,681,1299,1324,29954,6214,29958,6725,2472,1933]} 1. d4 {[%emt 0:00:03]} d5 {[%emt 0:00:02]} 2. c4 {[%emt 0:00:02]} e6 {[%emt 0:00:02]} 3. Nf3 {[%emt 0:00:04]} c6 {[%emt 0:00:25]} 4. Qc2 {[%emt 0:00:07]} f5 {[%emt 0:00:04]} 5. Bf4 {[%emt 0:00:03]} Nf6 {[%emt 0:00:02]} 6. e3 {[%emt 0:00:04]} Bd6 {[%emt 0:00:03]} 7. Nc3 {[%emt 0:00:18]} O-O {[%emt 0:00:04]} 8. Bd3 {[%emt 0:00:03]} Ne4 {[%emt 0:00:11]} 9. O-O {[%emt 0:00:06]} Na6 {[%emt 0:01:21]} 10. a3 {[%emt 0:00:04]} Nc7 {[%emt 0:00:14] [#]} 11. c5 $146 {[%emt 0:01:27] A84: Dutch Defence: 2 c4 Miscellaneous.} ({Predecessor:} 11. Bxd6 Nxd6 12. Ne5 Nf7 13. f4 Ne8 14. cxd5 cxd5 15. Rac1 Bd7 16. Qb3 Ned6 17. Rc2 Rb8 18. a4 a6 {1-0 (65) Lang,M (2264)-Kuenzner,F (2267) Bayern 2007}) 11... Be7 {[%emt 0:00:03]} 12. Ne2 {[%emt 0:00:27] White is more active.} Bd7 {[%emt 0:00:33]} 13. h3 {[%emt 0:00:17] White is better.} Be8 {[%emt 0:00:05]} 14. Bh2 {[%emt 0:00:03]} Bh5 {[%emt 0:00:08]} 15. Ne5 {[%emt 0:00:02]} Bxe2 {[%emt 0:00:37]} 16. Bxe2 {[%emt 0:00:21]} Ne8 {[%emt 0:00:13]} 17. b4 {[%emt 0:00:09]} a6 {[%emt 0:00:05]} 18. a4 {[%emt 0:00:09]} Nc7 {[%emt 0:00:02] Against b5} 19. Rab1 {[%emt 0:00:13]} ({White should play} 19. f3 $18) 19... Qe8 {[%emt 0:02:40]} 20. Rb3 {[%emt 0:00:13]} Bh4 {[%emt 0:00:43]} (20... Bf6 $16 {keeps fighting.} 21. Qb2 Ra7) 21. Nf3 $18 {[%emt 0:01:02][%csl LRc7,LRh4]} Bd8 {[%emt 0:00:02]} 22. Rfb1 {[%emt 0:00:04]} g5 {[%emt 0:00:10]} (22... Rc8 $142 23. Bd6 Be7) 23. Ne5 {[%emt 0:00:12]} g4 {[%emt 0:00:07]} 24. hxg4 {[%emt 0:02:23]} fxg4 {[%emt 0:00:01]} 25. Bf4 {[%emt 0:00:13]} ({Don't play} 25. Nxg4 $6 h5 $16) (25. Bxg4 Rxf2 26. Be2 Rc8 $16) 25... g3 {[%emt 0:05:45]} 26. fxg3 {[%emt 0:00:22][%cal Bf2g3,Bg3f4][%mdl 32]} Bg5 {[%emt 0:01:00]} 27. Bf3 {[%emt 0:01:26]} Bxf4 {[%emt 0:00:14]} 28. gxf4 {[%emt 0:00:02]} Nf6 {[%emt 0:00:21]} 29. g4 {[%emt 0:00:57][%cal Bg2g4,Bg4g5][%mdl 32]} Kh8 {[%emt 0:00:02]} (29... Nd7 {was called for.} 30. Nxd7 Qxd7) 30. Kf2 {[%emt 0:00:58] [#] Strongly threatening Rh1.} ({Less strong is} 30. g5 Nd7 31. Nxd7 Qxd7 $18) 30... Rg8 {[%emt 0:00:16]} 31. Rh1 {[%emt 0:00:03] And now g5 would win.} Rg7 {[%emt 0:00:03]} 32. g5 {[%emt 0:00:46]} Nd7 {[%emt 0:00:02]} 33. Bh5 {[%emt 0:00:24]} Qf8 {[%emt 0:00:51]} (33... Qe7 $142 34. Nf7+ Kg8 35. Nh6+ Kh8 36. Nf7+ Kg8) 34. Nxd7 {[%emt 0:00:26]} Rxd7 {[%emt 0:00:02]} 35. Bg6 {[%emt 0:00:12][%cal Rg6h7]} Qg8 {[%emt 0:00:08]} 36. Rbb1 {[%emt 0:00:57]} Rf8 {[%emt 0:00:12]} 37. Rh6 {[%emt 0:00:31] [#] Rbh1 is the strong threat.} Rg7 {[%emt 0:00:13]} 38. Rbh1 {[%emt 0:00:23][%cal Rg6h7]} Rff7 {[%emt 0:01:34]} 39. Bxf7 {[%emt 0:00:40]} Qxf7 {[%emt 0:00:27]} 40. g6 {[%emt 0:00:04] Weighted Error Value: White=0.08 (flawless) /Black=0.49} 1-0

[Event "1st Anfield Cup 2022"]
[Site "Kyiv"]
[Date "2022.09.24"]
[Round "1.4"]
[White "Kazakov, Maksym"]
[Black "Bakhmatsky, Vladislav"]
[Result "0-1"]
[ECO "A01"]
[WhiteElo "2039"]
[BlackElo "2468"]
[Annotator "TA"]
[PlyCount "30"]
[EventDate "2022.09.20"]
[EventType "swiss"]
[EventCountry "UKR"]
[SourceTitle "playchess.com"]
[Source "ChessBase"]
[SourceQuality "1"]
[TimeControl "900+10"]

{[%evp 9,30,-62,-56,-70,-26,-45,-60,-62,-75,-81,-75,-227,-226,-225,-218,-228,-227,-681,-679,-756,-756,-926,-771]} 1. b3 {[%emt 0:00:02]} Nf6 {[%emt 0:00:03]} 2. Bb2 {[%emt 0:00:01]} g6 {[%emt 0:00:01]} 3. Nc3 {[%emt 0:00:01]} d5 {[%emt 0:00:37][%cal Bd7d5,Bd5d4][%mdl 32]} 4. e3 {[%emt 0:00:03]} Bg7 {[%emt 0:00:06] [#]} 5. h4 $146 {[%emt 0:00:12]} ({Predecessor:} 5. d4 O-O 6. Qd2 c5 7. O-O-O cxd4 8. exd4 Nc6 9. f3 a5 10. Kb1 a4 11. Nxa4 Rxa4 12. bxa4 {½-½ (88) Jobava,B (2699)-Safarli,E (2641) Chess.com INT 2015}) 5... c5 {[%emt 0:00:34]} 6. h5 {[%emt 0:01:54] A01: Nimzowitsch-Larsen Opening.} gxh5 {[%emt 0:03:36]} (6... Nxh5 {with more complications.} 7. Rxh5 gxh5 8. Qxh5 Nc6) 7. Nh3 {[%emt 0:00:44]} d4 {[%emt 0:01:15]} 8. Ne2 {[%emt 0:00:18][%cal Re3d4] Black is slightly better.} Nc6 {[%emt 0:00:42][%cal Bb8c6,Bc6b4,Bb4d3][%mdl 32] Black is more active.} 9. Nhf4 {[%emt 0:00:56]} e5 {[%emt 0:00:52]} 10. Nxh5 {[%emt 0:00:19]} (10. Nd3 $17) 10... Nxh5 $19 {[%emt 0:00:02]} 11. Rxh5 {[%emt 0:00:02]} Bg4 {[%emt 0:00:02]} 12. Rh1 {[%emt 0:00:13] [#]} d3 $1 {[%emt 0:00:41] aiming for ...Nb4.} 13. cxd3 $2 {[%emt 0:01:57]} (13. a3 dxe2 14. Bxe2) 13... Nb4 {[%emt 0:00:02][%cal Rb4d3] Black is clearly winning.} 14. Qb1 {[%emt 0:00:01]} Nxd3+ {[%emt 0:00:02]} 15. Kd1 {[%emt 0:00:01]} Bf5 {[%emt 0:00:38] Black took control after the opening.  Weighted Error Value: White=1.07/Black=0.07 (flawless)} 0-1

[Event "1st Anfield Cup 2022"]
[Site "Kyiv"]
[Date "2022.09.24"]
[Round "1.5"]
[White "Andreev, Eduard"]
[Black "Pyrig, Roman"]
[Result "1-0"]
[ECO "B31"]
[WhiteElo "2413"]
[BlackElo "2061"]
[Annotator "TA"]
[PlyCount "103"]
[EventDate "2022.09.20"]
[EventType "swiss"]
[EventCountry "UKR"]
[SourceTitle "playchess.com"]
[Source "ChessBase"]
[SourceQuality "1"]
[TimeControl "900+10"]

{[%evp 21,103,22,25,37,27,15,34,33,39,27,50,56,57,54,38,26,48,31,70,70,134,69,73,67,160,0,31,22,60,47,91,-10,323,214,218,201,196,0,0,0,0,0,0,0,0,0,0,0,0,0,0,0,0,0,0,0,0,0,24,25,22,0,0,0,575,38,47,0,0,0,614,603,599,-29993,29987,29977,29977,29978,29978,29979,29969,1804,29997,29998]} 1. e4 {[%emt 0:00:03]} c5 {[%emt 0:00:03]} 2. Nf3 {[%emt 0:00:02]} Nc6 {[%emt 0:00:03]} 3. Bb5 {[%emt 0:00:03]} g6 {[%emt 0:00:02]} 4. Bxc6 {[%emt 0:00:04]} dxc6 {[%emt 0:01:16]} 5. d3 {[%emt 0:00:03]} Bg7 6. h3 {[%emt 0:00:04]} Qc7 {[%emt 0:03:34]} 7. Nc3 {[%emt 0:01:14]} e5 {[%emt 0:00:49]} 8. Be3 {[%emt 0:00:19]} b6 {[%emt 0:00:02]} 9. Qd2 {[%emt 0:00:25]} Nf6 {[%emt 0:00:03]} 10. Bh6 {[%emt 0:00:23]} O-O {[%emt 0:00:05]} 11. O-O-O {[%emt 0:00:44]} Re8 {[%emt 0:01:30]} 12. Bxg7 {[%emt 0:00:11] B31: Sicilian: 2...Nc6 3 Bb5 g6.} Kxg7 {[%emt 0:00:03] [#]} 13. g4 $146 {[%emt 0:00:19]} ({Predecessor:} 13. h4 Bg4 14. Rdg1 Bxf3 15. gxf3 Nh5 16. Ne2 Kh8 17. Qh6 Qe7 18. Rg5 Nf6 19. Rg2 Qf8 {½-½ (34) Varitski,I (2355)-Varchenko,G (2183) Alushta 2006}) 13... b5 {[%emt 0:01:24]} 14. Ne2 {[%emt 0:02:53] White is slightly better.} Be6 {[%emt 0:01:50]} 15. Ng3 {[%emt 0:00:07]} b4 {[%emt 0:01:38] [#]} 16. Nf5+ $1 {[%emt 0:01:41]} Bxf5 {[%emt 0:00:02]} 17. gxf5 {[%emt 0:00:05]} Nh5 {[%emt 0:00:02]} 18. Kb1 {[%emt 0:01:14]} a5 {[%emt 0:00:39]} 19. Rhg1 {[%emt 0:00:59]} Qe7 {[%emt 0:01:31]} 20. Rg4 $1 {[%emt 0:01:26] White is more active.} Red8 {[%emt 0:02:03]} (20... c4 $14) 21. Nh4 {[%emt 0:02:16]} (21. Rdg1 $16) 21... Qf6 $14 {[%emt 0:00:02]} (21... Nf4 $2 22. fxg6 Qe6 23. gxf7+ Kxf7 24. Nf3 $18) 22. Rdg1 {[%emt 0:00:46]} c4 {[%emt 0:00:02]} ({Black should play} 22... Rd7 $14) 23. Qe3 $2 {[%emt 0:01:42]} (23. fxg6 $16 fxg6 24. Nf5+ Kf7 25. Rh4 cxd3 26. cxd3) 23... cxd3 {[%emt 0:00:38]} (23... Nf4 $2 24. fxg6 (24. dxc4 Rd7 $11) 24... fxg6 25. d4 $18 (25. dxc4 a4 $11)) 24. cxd3 {[%emt 0:00:02] Chess con chili.} c5 {[%emt 0:00:24]} (24... Nf4 25. d4 (25. fxg6 fxg6 26. d4 Rf8 $16) 25... Rxd4 26. fxg6 Nxg6 27. Nf5+ Kh8 28. h4 $18 (28. Nxd4 exd4 29. e5 Qf5+ 30. Qe4 Qxe4+ 31. Rxe4 Rd8 $18)) 25. fxg6 {[%emt 0:00:48]} (25. Qxc5 Qa6 26. Qxe5+ Kh6) 25... fxg6 {[%emt 0:00:04]} 26. Nf5+ {[%emt 0:00:13]} (26. Qxc5 $16 {Strongly threatening Qc7+.} Rac8 27. Qa7+ (27. Qxa5 Qxf2 28. Nf5+ Kf7 $11) 27... Kh8 28. Rxg6 hxg6 29. Nxg6+ Kg8 30. f4) 26... Kf7 $2 {[%emt 0:00:45][%mdl 8192]} (26... Kh8 $2 27. Rxg6 $3 {[%mdl 512]} Rg8 28. Rxg8+ Rxg8 29. Rxg8+ Kxg8 30. Qxc5 $18) (26... Kg8 $1 $11 {and Black is okay.}) 27. Qh6 {[%emt 0:00:34]} ({Less strong is} 27. Qxc5 Qe6 $16) 27... Rh8 {[%emt 0:00:25]} 28. Ne3 {[%emt 0:00:21]} Nf4 {[%emt 0:00:16] [#]} 29. Nd5 $2 {[%emt 0:00:06]} (29. Rg5 $1 $18) 29... Nxd5 $11 {[%emt 0:00:03]} 30. exd5 {[%emt 0:00:02]} Rad8 {[%emt 0:00:25]} 31. f4 {[%emt 0:00:04] And now fxe5 would win.} Rxd5 {[%emt 0:00:09] Threatens to win with ...e4.} 32. fxe5 {[%emt 0:00:08]} Rxe5 {[%emt 0:00:01]} 33. Rf4 {[%emt 0:00:03]} Rf5 {[%emt 0:00:01]} 34. Rgf1 {[%emt 0:00:01]} Ke6 {[%emt 0:00:31]} 35. Rxf5 {[%emt 0:00:33]} gxf5 {[%emt 0:00:02][%mdl 4096] Endgame KQR-KQR} 36. Re1+ {[%emt 0:00:19]} Kf7 {[%emt 0:00:01]} 37. Qh5+ {[%emt 0:00:11]} Qg6 $1 {[%emt 0:00:00]} 38. Qe2 {[%emt 0:00:14]} Qf6 {[%emt 0:00:29] Prevents Qe7+.} 39. d4 {[%emt 0:00:26]} Rd8 {[%emt 0:00:24]} 40. dxc5 {[%emt 0:00:15]} f4 $1 {[%emt 0:00:11]} 41. Rf1 {[%emt 0:00:17] aiming for Qe4.} (41. c6 $5 f3 42. Qc4+ Kg7 43. Rg1+ Kh8 44. c7 $14) 41... Qf5+ {[%emt 0:00:09]} 42. Ka1 {[%emt 0:00:02] Hoping for c6.} Rd4 $2 {[%emt 0:00:16][%mdl 8192]} (42... Rd5 $11) 43. c6 $2 {[%emt 0:00:04]} ({White has to play} 43. Re1 $18) 43... Re4 $14 {[%emt 0:00:02]} 44. Qf2 {[%emt 0:00:09]} (44. Qd1 $14 {is more appropriate.} Rc4 45. Qb3 (45. Qd6 f3 $11)) 44... Rc4 $11 {[%emt 0:00:17]} 45. Qa7+ {[%emt 0:00:06]} Kf6 $2 {[%emt 0:00:09][%mdl 8192] [#]} (45... Kg6 $11) 46. Rg1 $1 $18 {[%emt 0:00:08] Qg7+ is the strong threat.} Qg5 {[%emt 0:00:13] Inhibits Qg7+.} 47. a4 $4 {[%emt 0:00:04][%mdl 8192]} (47. h4 $18 Qg3 48. Rd1) 47... Qh6 $4 {[%emt 0:00:11][%mdl 8192]} (47... b3 48. Qe7+ Kxe7 49. Re1+ Kf8 50. Rd1 Rxa4+ 51. Kb1 Qg6+ 52. Rd3 Qxd3+ 53. Kc1 Rc4#) 48. Qd7 {[%emt 0:00:09]} Qf8 {[%emt 0:00:10]} 49. Re1 {[%emt 0:00:11]} Qf7 {[%emt 0:00:06]} 50. Qd6+ {[%emt 0:00:03]} Kg5 {[%emt 0:00:14]} 51. Rg1+ {[%emt 0:00:02]} (51. Qe5+ $142 Kh6 52. Rg1 Qg6 53. Rxg6+ hxg6 54. c7 Rc1+ 55. Ka2 g5 56. Qe6+ Kg7 57. c8=Q) 51... Kh4 {[%emt 0:00:03]} 52. Qh6+ {Weighted Error Value: White=0.39/Black=0.62} 1-0